lending/lending_fUSD_20250102
["ID","MTS","AMOUNT","RATE_DAILY","PERIOD"]
[347432617,1735803040031,-9850.47681093,9.99e-05,2]
[347432618,1735803040049,-1197.25736948,9.99e-05,2]
[347432619,1735803040060,-802.66496489,9.99e-05,2]
[347432620,1735803040071,-632.27300002,9.99e-05,2]
[347432621,1735803040082,-425.1582348,9.99e-05,2]
[347432622,1735803040201,-722.19529931,9.99e-05,2]
[347432623,1735803040212,-856.2799995,9.99e-05,2]
[347432624,1735803040223,-1787.55805162,9.99e-05,2]
[347432625,1735803040238,-278.20000002,9.99e-05,2]
[347432626,1735803040250,-2240.91721747,9.99e-05,2]
[347432627,1735803040262,-3187.67097817,9.99e-05,2]
[347432628,1735803040273,-4739.19936288,9.99e-05,2]
[347432629,1735803040310,-568.5368175,9.99e-05,2]
[347432630,1735803040321,-24593.62384073,9.99e-05,2]
[347432631,1735803040331,-151627.34820672,9.99e-05,2]
[347432676,1735803043075,-7336.18371553,9.99e-05,2]
[347432678,1735803043086,-104139.06939481,9.99e-05,2]
[347432680,1735803043098,-6855.90067227,9.99e-05,2]
[347432682,1735803043108,-930.16104195,9.99e-05,2]
[347432685,1735803043120,-43219.9551316,9.99e-05,2]
[347432690,1735803043163,-21533.27470492,9.99e-05,2]
[347432691,1735803043174,-10377.31968114,9.99e-05,2]
[347432692,1735803043185,-1469.6840553,9.99e-05,2]
[347432693,1735803043228,-1580.61261136,9.99e-05,2]
[347432694,1735803043240,-1132.58449139,9.99e-05,2]
[347432695,1735803043252,-6971.48568337,9.99e-05,2]
[347432696,1735803043263,-748.62327473,9.99e-05,2]
[347432697,1735803043274,-674.75007777,9.99e-05,2]
[347432698,1735803043304,-5242.74940921,9.99e-05,2]
[347432699,1735803043315,-2695.74136285,9.99e-05,2]
[347432700,1735803043326,-1834.16420395,9.99e-05,2]
[347432701,1735803043350,-586.25287661,9.99e-05,2]
[347432718,1735803045952,-1303.17693193,9.99e-05,2]
[347432720,1735803045963,-2238.27476078,9.99e-05,2]
[347432722,1735803045975,-330.47419424,9.99e-05,2]
[347432724,1735803045986,-1865.90015416,9.99e-05,2]
[347432727,1735803046010,-3639.43722542,9.99e-05,2]
[347432730,1735803046021,-7242.9568409,9.99e-05,2]
[347432732,1735803046032,-4910.85038656,9.99e-05,2]
[347432733,1735803046054,-8987.6809423,9.99e-05,2]
[347432734,1735803046065,-463.49596685,9.99e-05,2]
[347432735,1735803046075,-324.95834368,9.99e-05,2]
[347432736,1735803046086,-2312.42048,9.99e-05,2]
[347432737,1735803046097,-38916.72389401,9.99e-05,2]
[347432738,1735803046108,-537.95884337,9.99e-05,2]
[347432739,1735803046135,-1449.07818022,9.99e-05,2]
[347432740,1735803046255,-602.0,9.99e-05,2]
[347432741,1735803046266,-4804.33738247,9.99e-05,2]
[347432742,1735803046278,-2049.27708235,9.99e-05,2]
[347432743,1735803046302,-2189.47829074,9.99e-05,2]
[347432744,1735803046313,-556.84881933,9.99e-05,2]
[347432745,1735803046324,-13917.51677167,9.99e-05,2]
[347432746,1735803046336,-773.58592102,9.99e-05,2]
[347432747,1735803046348,-500.0,9.99e-05,2]
[347432753,1735803231449,250.0,9.492e-05,2]
[347432756,1735803270096,399.588,9.49e-05,2]
[347432757,1735803356188,631.42,9.384e-05,2]
[347432758,1735803406246,590.97,8.219e-05,2]
[347432759,1735803524000,994.0,8.692e-05,2]
[347432761,1735803538062,1000.0,9.381e-05,2]
[347432765,1735803723315,2000.0,9e-05,2]
[347432767,1735803816723,150.0,9.375e-05,2]
[347432768,1735803816855,150.0,9.439e-05,2]
[347432769,1735803875529,150.0,9.101e-05,2]
[347432770,1735803875867,150.0,9.556e-05,2]
[347432771,1735803955478,383.042,9.49e-05,2]
[347432772,1735803970794,160.4434,0.0002,120]
[347432773,1735803987886,160.443397,0.0002,120]
[347432774,1735803995847,150.0,9.133e-05,2]
[347432775,1735803996930,160.4434,0.0002,120]
[347432776,1735804006954,160.4434,0.0002,120]
[347432777,1735804016634,160.4434,0.0002,120]
[347432778,1735804025578,160.4434,0.0002,120]
[347432779,1735804034492,160.4434,0.0002,120]
[347432780,1735804044151,160.4434,0.0002,120]
[347432781,1735804053030,160.4434,0.0002,120]
[347432782,1735804063859,160.4434,0.0002,120]
[347432783,1735804078310,160.4434,0.0002,120]
[347432784,1735804089830,160.4434,0.0002,120]
[347432785,1735804099758,160.4434,0.0002,120]
[347432786,1735804110300,160.4434,0.0002,120]
[347432788,1735804120853,160.4434,0.0002,120]
[347432789,1735804159604,250.0,9.08e-05,2]
[347432790,1735804176013,150.0,8.36e-05,2]
[347432791,1735804176197,150.0,8.755e-05,2]
[347432792,1735804176543,150.0,8.126e-05,2]
[347432802,1735804232141,-150.0,9.775e-05,2]
[347432803,1735804232151,-1384.175,9.79e-05,2]
[347432804,1735804232160,-150.0,9.79e-05,2]
[347432805,1735804232170,-150.0,9.863e-05,2]
[347432806,1735804232179,-150.0,9.868e-05,2]
[347432807,1735804232188,-300.0,9.889e-05,2]
[347432808,1735804232197,-1915.7009,9.89e-05,2]
[347432809,1735804232206,-161.3898,9.89e-05,2]
[347432810,1735804232215,-838.559408,9.89e-05,2]
[347432815,1735804232571,-4569.794492,9.89e-05,2]
[347432816,1735804232580,-995.86731281,9.89e-05,2]
[347432817,1735804232592,-50678.12288719,9.89e-05,2]
[347432818,1735804232602,-30000.0,9.952e-05,2]
[347432819,1735804232611,-437.58,9.96e-05,2]
[347432820,1735804232620,-500.0,9.963e-05,2]
[347432822,1735804232629,-1543.0,9.97e-05,2]
[347432824,1735804232638,-511.61,9.97e-05,2]
[347432826,1735804232647,-437.58,9.97e-05,2]
[347432828,1735804232657,-300.0,9.97e-05,2]
[347432831,1735804232666,-437.58,9.97e-05,2]
[347432832,1735804232675,-437.58,9.97e-05,2]
[347432834,1735804232684,-150.0,9.974e-05,2]
[347432836,1735804232693,-1499.15421244,9.976e-05,2]
[347432838,1735804232702,-1835.9171062,9.986e-05,2]
[347432840,1735804232711,-500.0,9.989e-05,2]
[347432842,1735804232720,-689.37,9.989e-05,2]
[347432845,1735804232730,-224.72164195,9.989e-05,2]
[347432848,1735804232739,-518.0,9.99e-05,2]
[347432851,1735804232747,-101432.08500589,9.99e-05,2]
[347433456,1735804238512,-5104.097172,9.99e-05,2]
[347433463,1735804238564,-1476.55,9.99e-05,2]
[347433465,1735804238575,-7702.8642812,9.99e-05,2]
[347433623,1735804240215,-764.75220241,9.99e-05,2]
[347433624,1735804240226,-23570.44894684,9.99e-05,2]
[347433625,1735804240237,-3174.82478416,9.99e-05,2]
[347433626,1735804240248,-255.20249993,9.99e-05,2]
[347433627,1735804240301,-16795.2913419,9.99e-05,2]
[347433628,1735804240313,-2485.58710245,9.99e-05,2]
[347433629,1735804240392,-10598.25405389,9.99e-05,2]
[347433642,1735804243164,-2650.2411413,9.99e-05,2]
[347433649,1735804243346,-2116.97344522,9.99e-05,2]
[347433650,1735804243415,-1700.77787699,9.99e-05,2]
[347433651,1735804243487,-5022.75,9.99e-05,2]
[347433658,1735804246127,-963.52268,9.99e-05,2]
[347433659,1735804246313,-24046.89737215,9.99e-05,2]
[347433660,1735804246326,-65407.67642868,9.99e-05,2]
[347433661,1735804246338,-185198.10641973,9.99e-05,2]
[347433662,1735804246353,-6118.36196606,9.99e-05,2]
[347433663,1735804246377,-479.66,9.99e-05,2]
[347433664,1735804277340,380.687,9.49e-05,2]
[347433665,1735804285254,560.39,9.536e-05,2]
[347433666,1735804296053,150.0,9.49e-05,2]
[347433667,1735804296092,150.0,8.276e-05,2]
[347433668,1735804296175,150.0,8.318e-05,2]
[347433669,1735804296248,150.0,7.4e-05,2]
[347433670,1735804296283,150.0,8.957e-05,2]
[347433671,1735804309090,167.82,9.523e-05,2]
[347433672,1735804312961,579.89,8.219e-05,2]
[347433673,1735804356338,505.15421244,9.587e-05,2]
[347433674,1735804377144,527.52,9.501e-05,2]
[347433675,1735804408871,1000.0,9.5e-05,2]
[347433676,1735804476072,1500.0,8.844e-05,2]
[347433677,1735804476173,1500.0,9.206e-05,2]
[347433678,1735804476290,1500.0,9.05e-05,2]
[347433679,1735804476373,1500.0,9.162e-05,2]
[347433680,1735804483268,594.25,9.527e-05,2]
[347433681,1735804589126,223.32,9.522e-05,2]
[347433682,1735804966154,364.661,9.49e-05,2]
[347433683,1735805013243,302.5,9.528e-05,2]
[347433685,1735805102991,150.0,8.975e-05,2]
[347433686,1735805136250,150.0,9.151e-05,2]
[347433687,1735805136393,150.0,9.235e-05,2]
[347433688,1735805136440,150.0,9.557e-05,2]
[347433689,1735805136488,150.0,9.304e-05,2]
[347433690,1735805136599,150.0,9.491e-05,2]
[347433691,1735805136949,150.0,9.256e-05,2]
[347433692,1735805137023,150.0,9.185e-05,2]
[347433693,1735805149926,250.0,9.51e-05,2]
[347433694,1735805176278,550.89,8.219e-05,2]
[347433695,1735805255989,150.0,9.181e-05,2]
[347433696,1735805256039,150.0,8.813e-05,2]
[347433697,1735805256117,150.0,9.02e-05,2]
[347433698,1735805256160,150.0,9.08e-05,2]
[347433699,1735805257155,505.13,9.423e-05,2]
[347433700,1735805266684,1000.0,9.427e-05,2]
[347433707,1735805432335,-150.0,9.634e-05,2]
[347433708,1735805432344,-5000.0,9.69e-05,2]
[347433709,1735805432354,-1294.5943,9.69e-05,2]
[347433710,1735805432363,-3950.56435238,9.79e-05,2]
[347433712,1735805432719,-612.23105833,9.79e-05,2]
[347433718,1735805432764,-82382.51372971,9.79e-05,2]
[347433720,1735805432776,-51746.38640082,9.79e-05,2]
[347433722,1735805432787,-2528.66366055,9.79e-05,2]
[347433730,1735805432847,-949.94196682,9.79e-05,2]
[347433732,1735805432859,-550.05803318,9.79e-05,2]
[347433747,1735805432931,-89957.58664282,9.79e-05,2]
[347434310,1735805438268,-5414.51794473,9.79e-05,2]
[347434312,1735805438279,-38407.19814278,9.79e-05,2]
[347434315,1735805438291,-1360.72366522,9.79e-05,2]
[347434317,1735805438301,-72565.06582902,9.79e-05,2]
[347434321,1735805438333,-1910.04,9.79e-05,2]
[347434323,1735805438346,-654.06454835,9.79e-05,2]
[347434328,1735805438376,-879.08439737,9.79e-05,2]
[347434330,1735805438387,-31159.93385217,9.79e-05,2]
[347434333,1735805438405,-4801.6,9.79e-05,2]
[347434543,1735805440398,-11016.77983228,9.79e-05,2]
[347434840,1735805443266,-26399.99999789,9.79e-05,2]
[347434847,1735805443320,-68106.84587931,9.79e-05,2]
[347434850,1735805443332,-3477.29281263,9.79e-05,2]
[347434854,1735805443342,-1838.3197628,9.79e-05,2]
[347434858,1735805443375,-286502.08392116,9.79e-05,2]
[347434860,1735805443385,-150.0,9.874e-05,2]
[347434862,1735805443394,-150.0,9.962e-05,2]
[347434864,1735805443403,-500.0,9.963e-05,2]
[347434866,1735805443412,-3822.0691908,9.986e-05,2]
[347434868,1735805443421,-631.36,9.989e-05,2]
[347434870,1735805443430,-500.0,9.989e-05,2]
[347434872,1735805443439,-286096.65276602,9.99e-05,2]
[347434875,1735805443450,-301.49488394,9.99e-05,2]
[347434879,1735805443478,-628.211996,9.99e-05,2]
[347434884,1735805443518,-3520.103004,9.99e-05,2]
[347434886,1735805443529,-14208.67603151,9.99e-05,2]
[347434892,1735805443574,-1302.1840501,9.99e-05,2]
[347434895,1735805443588,-1792183.28779611,9.99e-05,2]
[347434902,1735805443647,-500.0,9.99e-05,2]
[347434928,1735805446272,-960.18,9.99e-05,2]
[347434929,1735805446318,-4975.52936314,9.99e-05,2]
[347434930,1735805446424,-181969.33869484,9.99e-05,2]
[347434931,1735805446435,-9001.7330497,9.99e-05,2]
[347434932,1735805446479,-4301.33947094,9.99e-05,2]
[347434933,1735805446490,-1819.17932401,9.99e-05,2]
[347434934,1735805446501,-523.17837648,9.99e-05,2]
[347434935,1735805446584,-1187.499975,9.99e-05,2]
[347434943,1735805472225,363.671,9.49e-05,2]
[347434944,1735805475112,22496.95,9.564e-05,2]
[347434945,1735805495483,150.0,8.948e-05,2]
[347434946,1735805495593,150.0,9.459e-05,2]
[347434947,1735805496167,150.0,8.423e-05,2]
[347434948,1735805649279,200.0,9.429e-05,2]
[347434949,1735805677187,150.0,9.514e-05,2]
[347434950,1735805677405,150.0,9.538e-05,2]
[347434951,1735805749305,1500.0,9.556e-05,2]
[347434952,1735805749713,910.08628364,9.499e-05,2]
[347434954,1735805907321,390.87,8.794e-05,2]
[347434956,1735805952064,250.0,8.792e-05,2]
[347434958,1735806088705,1935.0,9.323e-05,2]
[347434959,1735806092162,541.37,8.219e-05,2]
[347434960,1735806096498,831.12,8.863e-05,2]
[347434961,1735806150554,348.429,9.49e-05,2]
[347434963,1735806225899,31423.4378,9.508e-05,2]
[347434964,1735806226015,448.31,8.783e-05,2]
[347434965,1735806308505,150.0,8.63e-05,2]
[347434966,1735806336169,150.0,9.601e-05,2]
[347434967,1735806336208,150.0,9.605e-05,2]
[347434968,1735806364267,1000.0,8.772e-05,2]
[347434969,1735806370965,250.0,8.772e-05,2]
[347434982,1735806515687,150.0,9.598e-05,2]
[347434983,1735806515878,150.0,9.603e-05,2]
[347435001,1735806631509,-300.0,9.606e-05,2]
[347435002,1735806631519,-500.0,9.607e-05,2]
[347435003,1735806631528,-354.50810787,9.607e-05,2]
[347435007,1735806631539,-182.07061689,9.607e-05,2]
[347435009,1735806631549,-228.16395277,9.607e-05,2]
[347435010,1735806631558,-582.50913036,9.607e-05,2]
[347435011,1735806631739,-1211.3,9.607e-05,2]
[347435012,1735806631753,-190996.22000001,9.607e-05,2]
[347435013,1735806631841,-3943.99153659,9.607e-05,2]
[347435014,1735806631853,-12547.26209474,9.607e-05,2]
[347435021,1735806637384,-812.46428514,9.607e-05,2]
[347435022,1735806637395,-35300.24968275,9.607e-05,2]
[347435023,1735806637505,-4606.00327041,9.607e-05,2]
[347435024,1735806637515,-485.92494047,9.607e-05,2]
[347435025,1735806637526,-23162.35532745,9.607e-05,2]
[347435026,1735806637605,-24052.01273388,9.607e-05,2]
[347435111,1735806639446,-500.0,9.607e-05,2]
[347435112,1735806639456,-454.38,9.607e-05,2]
[347435113,1735806639506,-45.62,9.607e-05,2]
[347435114,1735806639516,-603.74945261,9.607e-05,2]
[347435115,1735806639525,-500.0,9.607e-05,2]
[347435116,1735806639535,-193.29643909,9.607e-05,2]
[347435117,1735806639547,-306.70356091,9.607e-05,2]
[347435118,1735806639556,-1134.76459376,9.607e-05,2]
[347435119,1735806639571,-8941.57946996,9.607e-05,2]
[347435120,1735806639631,-1925.13775293,9.607e-05,2]
[347435121,1735806639642,-3218.182826,9.607e-05,2]
[347435129,1735806642474,-16599.25639904,9.607e-05,2]
[347435130,1735806642692,-346.250014,9.607e-05,2]
[347435131,1735806642705,-3500.01222312,9.607e-05,2]
[347435132,1735806642717,-1813.7999,9.607e-05,2]
[347435133,1735806642757,-19171.6,9.607e-05,2]
[347435135,1735806645545,-6159.38144099,9.607e-05,2]
[347435136,1735806645583,-1256.74719578,9.607e-05,2]
[347435137,1735806645602,-1688.69009499,9.607e-05,2]
[347435138,1735806645615,-265.7042993,9.607e-05,2]
[347435139,1735806645630,-32736.99775133,9.607e-05,2]
[347435140,1735806645643,-901069.64797384,9.608e-05,2]
[347435141,1735806645656,-1201.89788993,9.608e-05,2]
[347435142,1735806645672,-39154.8720386,9.608e-05,2]
[347435143,1735806645685,-19871.3794886,9.608e-05,2]
[347435144,1735806645698,-63456.10109665,9.608e-05,2]
[347435145,1735806645748,-4776.633,9.608e-05,2]
[347435159,1735806655693,1013.0843,9.508e-05,2]
[347435160,1735806661251,4518.15488091,9.52e-05,2]
[347435162,1735806714089,347.731,9.49e-05,2]
[347435163,1735806849987,404.32,8.753e-05,2]
[347435165,1735806882482,4741.5725,9.508e-05,2]
[347435167,1735807003366,33545.1349,9.508e-05,2]
[347435168,1735807031701,531.86,8.219e-05,2]
[347435169,1735807077886,339.659,9.49e-05,2]
[347435170,1735807078928,404.1,8.77e-05,2]
[347435171,1735807111107,1678.999,9.416e-05,2]
[347435173,1735807279397,10000.0,9.605e-05,2]
[347435175,1735807289616,10000.0,9.605e-05,2]
[347435178,1735807313216,1000.0,8.799e-05,2]
[347435179,1735807317013,10000.0,9.605e-05,2]
[347435180,1735807340549,9270.0,9.605e-05,2]
[347435181,1735807508677,150.0,9.589e-05,2]
[347435186,1735807648525,250.0,8.805e-05,2]
[347435460,1735807741457,300.0,9.605e-05,2]
[347435461,1735807763384,325.822,9.49e-05,2]
[347435462,1735807801579,300.0,9.605e-05,2]
[347435466,1735807831591,-7590.06989528,9.606e-05,2]
[347435467,1735807831647,-311.34125143,9.606e-05,2]
[347435468,1735807831658,-809.10534744,9.606e-05,2]
[347435469,1735807831671,-320.29041264,9.606e-05,2]
[347435470,1735807831681,-4401.02204807,9.606e-05,2]
[347435471,1735807831716,-546.5046,9.606e-05,2]
[347435472,1735807831763,-27124.12823726,9.606e-05,2]
[347435473,1735807831772,-15886.66889274,9.607e-05,2]
[347435474,1735807831783,-4712.91250934,9.607e-05,2]
[347435475,1735807831820,-971.73618872,9.607e-05,2]
[347435476,1735807831830,-77987.83830034,9.607e-05,2]
[347435477,1735807831841,-1356.37191738,9.607e-05,2]
[347435478,1735807831877,-2853.2298529,9.607e-05,2]
[347435479,1735807831888,-569.745,9.607e-05,2]
[347435480,1735807831934,-1409.25229469,9.607e-05,2]
[347435492,1735807837796,-33547.69921048,9.607e-05,2]
[347435493,1735807837807,-818.68772987,9.607e-05,2]
[347435494,1735807837817,-10178.2890862,9.607e-05,2]
[347435495,1735807837828,-436.38132416,9.607e-05,2]
[347435497,1735807837839,-9608.28726461,9.607e-05,2]
[347435500,1735807837850,-61859.91676526,9.607e-05,2]
[347435504,1735807837882,-3832.10182229,9.607e-05,2]
[347435506,1735807837893,-268.28055403,9.607e-05,2]
[347435509,1735807837904,-9194.14,9.607e-05,2]
[347435511,1735807837915,-3699.75031725,9.607e-05,2]
[347435513,1735807837928,-182640.31879439,9.607e-05,2]
[347435515,1735807837937,-596.01,9.607e-05,2]
[347435518,1735807837946,-4273.8221397,9.607e-05,2]
[347435520,1735807837956,-114821.56820762,9.608e-05,2]
[347435523,1735807837971,-1039.58900093,9.608e-05,2]
[347435525,1735807837984,-973.97532895,9.608e-05,2]
[347435528,1735807839639,-4897632.2768862,9.608e-05,2]
[347435529,1735807839651,-2585.57802967,9.608e-05,2]
[347435530,1735807839662,-6785.14320016,9.608e-05,2]
[347435531,1735807839673,-700.05,9.608e-05,2]
[347435532,1735807839685,-982.2799142,9.608e-05,2]
[347435533,1735807839709,-494.00939894,9.608e-05,2]
[347435534,1735807839719,-1897.0,9.608e-05,2]
[347435535,1735807839755,-58430.13577672,9.608e-05,2]
[347435557,1735807840138,-1248.84407303,9.608e-05,2]
[347435559,1735807840149,-544.43641322,9.608e-05,2]
[347435830,1735807842795,-78766.69696982,9.608e-05,2]
[347435836,1735807842850,-3478.87412476,9.608e-05,2]
[347435920,1735807845827,-57813.23460444,9.608e-05,2]
[347435921,1735807845842,-1193.66251556,9.608e-05,2]
[347435922,1735807845990,-605.4,9.608e-05,2]
[347435923,1735807846001,-3695.21734289,9.608e-05,2]
[347435924,1735807846044,-803.98004172,9.608e-05,2]
[347435925,1735807846054,-812451.10903016,9.608e-05,2]
[347435926,1735807849541,202.16,8.812e-05,2]
[347435929,1735807898970,326.076,9.49e-05,2]
[347435930,1735807917038,539.55,8.219e-05,2]
[347435931,1735807968582,358.64,8.8e-05,2]
[347435932,1735808024667,173.0,9.016e-05,2]
[347435933,1735808031979,1729.0840318,9e-05,4]
[347435934,1735808038889,151.010217,0.0002,120]
[347435936,1735808079849,8399.331136,9.6e-05,4]
[347435937,1735808157772,19304.8499,9.508e-05,2]
[347435938,1735808230729,1000.0,8.801e-05,2]
[347435939,1735808311420,1343.199,9.416e-05,2]
[347435940,1735808331170,285.32,9.016e-05,2]
[347435941,1735808331578,201.0,9.104e-05,2]
[347435947,1735808375412,150.0,9.511e-05,2]
[347435948,1735808383737,150.0,9.406e-05,2]
[347435949,1735808383798,150.0,9.565e-05,2]
[347435950,1735808427994,4093.36,8.802e-05,2]
[347435951,1735808436501,197.61749733,9.474e-05,2]
[347435952,1735808495471,150.0,9.451e-05,2]
[347435953,1735808503933,150.0,9.375e-05,2]
[347435954,1735808533940,250.0,8.82e-05,2]
[347435955,1735808555520,150.0,9.401e-05,2]
[347435956,1735808555572,150.0,9.54e-05,2]
[347435957,1735808563730,150.0,9.496e-05,2]
[347435958,1735808578489,312.239,9.49e-05,2]
[347435959,1735808615828,150.0,9.364e-05,2]
[347435960,1735808615890,150.0,9.582e-05,2]
[347435961,1735808615943,150.0,9.352e-05,2]
[347435962,1735808615991,150.0,9.599e-05,2]
[347435963,1735808616028,150.0,9.435e-05,2]
[347435964,1735808616075,150.0,9.521e-05,2]
[347435965,1735808616145,150.0,9.501e-05,2]
[347435966,1735808616182,150.0,9.573e-05,2]
[347435967,1735808616310,150.0,9.586e-05,2]
[347435968,1735808629066,1500.0,9.353e-05,2]
[347435969,1735808629389,1500.0,9.388e-05,2]
[347435970,1735808675672,150.0,9.454e-05,2]
[347435971,1735808675725,150.0,9.544e-05,2]
[347435972,1735808707553,150.0,8.63e-05,2]
[347435973,1735808707880,150.0,9.11e-05,2]
[347435974,1735808708244,150.0,9.589e-05,2]
[347435975,1735808710134,150.0,8.63e-05,2]
[347435979,1735808716895,150.0,8.63e-05,2]
[347435980,1735808734210,153.18138776,8.63e-05,2]
[347435981,1735808748844,1500.0,9.496e-05,2]
[347435982,1735808766701,202.16,8.828e-05,2]
[347435983,1735808791707,512.57,8.219e-05,2]
[347435985,1735808855699,150.0,9.347e-05,2]
[347435986,1735808863455,150.0,9.455e-05,2]
[347435987,1735808876607,1500.0,9.468e-05,2]
[347435988,1735808877365,332.63594072,9.556e-05,2]
[347435989,1735808902346,323.28,8.891e-05,2]
[347435990,1735808915638,150.0,9.501e-05,2]
[347435991,1735808915674,150.0,9.424e-05,2]
[347435992,1735808915710,150.0,9.393e-05,2]
[347435993,1735808915746,150.0,9.417e-05,2]
[347435994,1735808915837,150.0,9.339e-05,2]
[347435995,1735808915873,150.0,9.44e-05,2]
[347435996,1735808915908,150.0,9.555e-05,2]
[347435997,1735808915943,150.0,9.524e-05,2]
[347435998,1735808915980,150.0,9.6e-05,2]
[347435999,1735808924064,150.0,9.359e-05,2]
[347436000,1735808938895,-472.30181117,0.00021,120]
[347436001,1735808938942,-1000.0,0.00022,120]
[347436002,1735808938984,-500.0,0.00022946,120]
[347436003,1735808939021,-2000.0,0.00022946,120]
[347436004,1735808939059,-342.213826,0.00022946,120]
[347436005,1735808939097,-200.0,0.00022946,120]
[347436006,1735808939373,332.63594072,9.435e-05,2]
[347436007,1735808975320,150.0,9.565e-05,2]
[347436008,1735808975409,150.0,9.601e-05,2]
[347436009,1735809014340,-4756.44261907,0.00024588,120]
[347436010,1735809014390,-2959.51588992,0.00024588,120]
[347436011,1735809014440,-190.0,0.00024588,120]
[347436012,1735809014490,-184.0,0.00024588,120]
[347436013,1735809014540,-644.1038107,0.00024588,120]
[347436014,1735809014590,-151.55117484,0.00024588,120]
[347436015,1735809014639,-3200.0,0.00024588,120]
[347436016,1735809014689,-2017.0,0.00024588,60]
[347436017,1735809014739,-2000.0,0.00024588,120]
[347436018,1735809014790,-2000.0,0.00024588,90]
[347436019,1735809014840,-618.0,0.00024588,120]
[347436020,1735809014894,-66000.0,0.00024588,90]
[347436021,1735809014944,-301.46201864,0.00024588,120]
[347436031,1735809031893,-9894.60186326,9.606e-05,2]
[347436032,1735809031905,-609.86344662,9.606e-05,2]
[347436033,1735809034246,-4652.07143247,9.606e-05,2]
[347436034,1735809034258,-1925.2507399,9.606e-05,2]
[347436041,1735809037758,-9625.2,9.606e-05,2]
[347436042,1735809037971,-171179.52567297,9.606e-05,2]
[347436043,1735809038040,-1501.26519847,9.606e-05,2]
[347436161,1735809039751,-649.84901329,9.606e-05,2]
[347436162,1735809039762,-544.34473846,9.606e-05,2]
[347436165,1735809039807,-481.51,9.606e-05,2]
[347436166,1735809039818,-3856.91617205,9.606e-05,2]
[347436167,1735809039829,-5411.40902785,9.606e-05,2]
[347436168,1735809041435,-5000.0,9.606e-05,2]
[347436169,1735809041447,-481.315,9.606e-05,2]
[347436170,1735809041458,-380.824444,9.606e-05,2]
[347436171,1735809041468,-537.49993158,9.606e-05,2]
[347436172,1735809041586,-253.90758358,9.606e-05,2]
[347436173,1735809041597,-852.22895866,9.606e-05,2]
[347436174,1735809041679,-2835.104616,9.606e-05,2]
[347436249,1735809043213,-89015.23433836,9.606e-05,2]
[347436252,1735809043225,-3948.605571,9.606e-05,2]
[347436253,1735809043236,-9104.62692497,9.606e-05,2]
[347436254,1735809043247,-1455.34304,9.606e-05,2]
[347436255,1735809043258,-709.07707001,9.606e-05,2]
[347436256,1735809043269,-1863.31369765,9.606e-05,2]
[347436259,1735809043370,-2438.03329522,9.606e-05,2]
[347436263,1735809043404,-4815.1,9.606e-05,2]
[347436265,1735809043415,-957.37092,9.606e-05,2]
[347436308,1735809045914,-13854.33629749,9.606e-05,2]
[347436310,1735809045924,-49604.36780538,9.607e-05,2]
[347436312,1735809045933,-690.39,9.607e-05,2]
[347436314,1735809045943,-500.0,9.607e-05,2]
[347436316,1735809045952,-602.14418175,9.607e-05,2]
[347436318,1735809045961,-500.0,9.607e-05,2]
[347436320,1735809045970,-500.0,9.607e-05,2]
[347436322,1735809045979,-550.73186173,9.607e-05,2]
[347436324,1735809045989,-500.0,9.607e-05,2]
[347436326,1735809045998,-500.0,9.607e-05,2]
[347436328,1735809046007,-500.0,9.607e-05,2]
[347436330,1735809046016,-500.0,9.607e-05,2]
[347436332,1735809046026,-500.0,9.607e-05,2]
[347436334,1735809046034,-500.0,9.607e-05,2]
[347436336,1735809046043,-500.0,9.607e-05,2]
[347436338,1735809046053,-6815.01342892,9.608e-05,2]
[347436341,1735809046064,-19122.0,9.608e-05,2]
[347436347,1735809046114,-108137.73712539,9.608e-05,2]
[347436349,1735809046125,-53821.90895195,9.608e-05,2]
[347436352,1735809046148,-13067.56423752,9.608e-05,2]
[347436686,1735809049443,1500.0,9.599e-05,2]
[347436692,1735809049495,1500.0,9.511e-05,2]
[347436698,1735809049543,1500.0,9.379e-05,2]
[347437436,1735809070682,379.6317,9.508e-05,2]
[347437437,1735809085124,1200.7896,9.506e-05,2]
[347437438,1735809092423,2916.0,9.512e-05,2]
[347437440,1735809095882,150.0,9.522e-05,2]
[347437441,1735809104221,313.282,9.13e-05,2]
[347437442,1735809106626,1000.0,9.026e-05,2]
[347437443,1735809138444,1000.0,9.508e-05,2]
[347437444,1735809155391,150.0,9.594e-05,2]
[347437445,1735809164295,150.0,9.392e-05,2]